[Event "Titled Tuesday Blitz August 1 Early 2023"]
[White "Balint, Vilmos"]
[Black "Bilan, Danila"]
[WhiteFideId "718050"]
[BlackFideId "24161918"]
[WhiteElo "2258"]
[BlackElo "2572"]
[Result "0-1"]
[Round "1"]
[TimeControl "180+1"]
[Date "2023.08.01"]
[WhiteClock "0:01:17"]
[BlackClock "0:00:05"]
[Board "197"]

1. e4 {[%clk 0:02:59]}  c6 {[%clk 0:02:59]} 2. d4 {[%clk 0:02:58]}  d5 {[%clk 0:03:00]} 3. e5 {[%clk 0:02:58]}  c5 {[%clk 0:03:00]} 4. a3 {[%clk 0:02:58]}  cxd4 {[%clk 0:02:57]} 5. b4 {[%clk 0:02:56]}  Nc6 {[%clk 0:02:51]} 6. f4 {[%clk 0:02:54]}  Bf5 {[%clk 0:02:44]} 7. Bb2 {[%clk 0:02:54]}  e6 {[%clk 0:02:38]} 8. Nf3 {[%clk 0:02:52]}  Nge7 {[%clk 0:02:28]} 9. Bb5 {[%clk 0:02:50]}  a6 {[%clk 0:02:18]} 10. Ba4 {[%clk 0:02:50]}  b5 {[%clk 0:02:09]} 11. Bb3 {[%clk 0:02:50]}  Be4 {[%clk 0:02:00]} 12. O-O {[%clk 0:02:45]}  Nf5 {[%clk 0:01:52]} 13. Rf2 {[%clk 0:02:37]}  Qb6 {[%clk 0:01:41]} 14. Qd2 {[%clk 0:02:31]}  Be7 {[%clk 0:01:16]} 15. g4 {[%clk 0:02:31]}  Bxf3 {[%clk 0:01:06]} 16. Rxf3 {[%clk 0:02:31]}  d3+ {[%clk 0:00:50]} 17. Kh1 {[%clk 0:02:28]}  Nfd4 {[%clk 0:00:50]} 18. Rxd3 {[%clk 0:02:26]}  Nxb3 {[%clk 0:00:46]} 19. cxb3 {[%clk 0:02:21]}  O-O {[%clk 0:00:42]} 20. Nc3 {[%clk 0:02:21]}  a5 {[%clk 0:00:40]} 21. bxa5 {[%clk 0:02:20]}  Nxa5 {[%clk 0:00:40]} 22. Ne2 {[%clk 0:02:19]}  b4 {[%clk 0:00:37]} 23. a4 {[%clk 0:02:17]}  Rac8 {[%clk 0:00:35]} 24. Nd4 {[%clk 0:02:07]}  Nc4 {[%clk 0:00:19]} 25. bxc4 {[%clk 0:02:06]}  dxc4 {[%clk 0:00:20]} 26. Nb5 {[%clk 0:02:06]}  cxd3 {[%clk 0:00:17]} 27. Qxd3 {[%clk 0:02:06]}  Qc6+ {[%clk 0:00:17]} 28. Kg1 {[%clk 0:02:04]}  Bc5+ {[%clk 0:00:17]} 29. Bd4 {[%clk 0:02:01]}  Rfd8 {[%clk 0:00:18]} 30. Rd1 {[%clk 0:01:53]}  Qd5 {[%clk 0:00:11]} 31. Qe3 {[%clk 0:01:40]}  b3 {[%clk 0:00:09]} 32. Nd6 {[%clk 0:01:29]}  Bxd6 {[%clk 0:00:09]} 33. exd6 {[%clk 0:01:29]}  Rxd6 {[%clk 0:00:05]} 34. Rd2 {[%clk 0:01:29]}  Rc2 {[%clk 0:00:04]} 35. Rxc2 {[%clk 0:01:22]}  bxc2 {[%clk 0:00:05]} 36. Bb2 {[%clk 0:01:21]}  Qd1+ {[%clk 0:00:05]} 37. Kg2 {[%clk 0:01:21]}  Rd2+ {[%clk 0:00:04]} 38. Kh3 {[%clk 0:01:17]}  Rd3 {[%clk 0:00:05]} 0-1


[Site "https://www.chess.com"]

[Event "Titled Tuesday Blitz August 1 Early 2023"]
[White "Vaglio Munoz, Jaime"]
[Black "Sturt, Raven"]
[WhiteFideId "6500145"]
[BlackFideId "2007304"]
[WhiteElo "2257"]
[BlackElo "2570"]
[Result "0-1"]
[Round "1"]
[TimeControl "180+1"]
[Date "2023.08.01"]
[WhiteClock "0:00:24"]
[BlackClock "0:00:14"]
[Board "199"]

1. Nf3 {[%clk 0:02:59]}  f5 {[%clk 0:02:56]} 2. c4 {[%clk 0:02:57]}  Nf6 {[%clk 0:02:56]} 3. b3 {[%clk 0:02:57]}  g6 {[%clk 0:02:57]} 4. Bb2 {[%clk 0:02:57]}  Bg7 {[%clk 0:02:58]} 5. g3 {[%clk 0:02:57]}  O-O {[%clk 0:02:58]} 6. Bg2 {[%clk 0:02:58]}  d6 {[%clk 0:02:56]} 7. d4 {[%clk 0:02:57]}  Qe8 {[%clk 0:02:55]} 8. O-O {[%clk 0:02:55]}  Na6 {[%clk 0:02:42]} 9. Na3 {[%clk 0:02:54]}  Ne4 {[%clk 0:02:35]} 10. Rc1 {[%clk 0:02:52]}  c6 {[%clk 0:02:29]} 11. Nd2 {[%clk 0:02:50]}  Nxd2 {[%clk 0:02:26]} 12. Qxd2 {[%clk 0:02:51]}  e5 {[%clk 0:02:25]} 13. e3 {[%clk 0:02:51]}  e4 {[%clk 0:02:19]} 14. d5 {[%clk 0:02:46]}  Bxb2 {[%clk 0:02:14]} 15. Qxb2 {[%clk 0:02:45]}  Nc5 {[%clk 0:02:14]} 16. Qc3 {[%clk 0:02:36]}  a5 {[%clk 0:02:09]} 17. Rfd1 {[%clk 0:02:34]}  Qe7 {[%clk 0:02:06]} 18. Bf1 {[%clk 0:02:33]}  Bd7 {[%clk 0:02:02]} 19. Nc2 {[%clk 0:02:31]}  Rfd8 {[%clk 0:01:52]} 20. a3 {[%clk 0:02:22]}  a4 {[%clk 0:01:52]} 21. b4 {[%clk 0:02:21]}  Nb3 {[%clk 0:01:52]} 22. Rb1 {[%clk 0:02:20]}  Rac8 {[%clk 0:01:51]} 23. dxc6 {[%clk 0:02:13]}  Bxc6 {[%clk 0:01:48]} 24. Nd4 {[%clk 0:02:13]}  Nxd4 {[%clk 0:01:42]} 25. Qxd4 {[%clk 0:02:14]}  Be8 {[%clk 0:01:39]} 26. b5 {[%clk 0:02:12]}  Rc5 {[%clk 0:01:35]} 27. h4 {[%clk 0:02:11]}  Bf7 {[%clk 0:01:21]} 28. Rb4 {[%clk 0:02:09]}  d5 {[%clk 0:01:21]} 29. Rxa4 {[%clk 0:02:03]}  Rdc8 {[%clk 0:01:21]} 30. cxd5 {[%clk 0:01:43]}  Rxd5 {[%clk 0:01:21]} 31. Qa1 {[%clk 0:01:43]}  Rdc5 {[%clk 0:01:02]} 32. Rad4 {[%clk 0:01:41]}  Be6 {[%clk 0:01:00]} 33. a4 {[%clk 0:01:39]}  h5 {[%clk 0:01:00]} 34. Rd6 {[%clk 0:01:35]}  Bf7 {[%clk 0:00:56]} 35. Qd4 {[%clk 0:01:31]}  g5 {[%clk 0:00:38]} 36. Rd7 {[%clk 0:01:28]}  Qe6 {[%clk 0:00:35]} 37. hxg5 {[%clk 0:01:28]}  h4 {[%clk 0:00:34]} 38. gxh4 {[%clk 0:01:27]}  f4 {[%clk 0:00:33]} 39. Qf6 {[%clk 0:01:26]}  Qg4+ {[%clk 0:00:30]} 40. Kh2 {[%clk 0:01:23]}  Qxh4+ {[%clk 0:00:29]} 41. Kg1 {[%clk 0:01:17]}  Rxg5+ {[%clk 0:00:26]} 42. Qxg5+ {[%clk 0:01:13]}  Qxg5+ {[%clk 0:00:26]} 43. Kh2 {[%clk 0:01:13]}  Qh4+ {[%clk 0:00:17]} 44. Bh3 {[%clk 0:01:13]}  Be6 {[%clk 0:00:16]} 45. Rg1+ {[%clk 0:01:11]}  Kf8 {[%clk 0:00:15]} 46. Rh7 {[%clk 0:00:25]}  Qxh7 {[%clk 0:00:15]} 47. Rg2 {[%clk 0:00:24]}  Qxh3+ {[%clk 0:00:14]} 48. Kg1 {[%clk 0:00:24]}  Rc1# {[%clk 0:00:14]} 0-1


[Site "https://www.chess.com"]

[Event "Titled Tuesday Blitz August 1 Early 2023"]
[White "Andreassen, Lars"]
[Black "Gauri, Shankar"]
[WhiteFideId "1504878"]
[BlackFideId "5041350"]
[WhiteElo "2250"]
[BlackElo "2566"]
[Result "1-0"]
[Round "1"]
[TimeControl "180+1"]
[Date "2023.08.01"]
[WhiteClock "0:00:36"]
[BlackClock "0:00:12"]
[Board "203"]

1. d4 {[%clk 0:02:59]}  Nf6 {[%clk 0:02:57]} 2. Nf3 {[%clk 0:02:57]}  e6 {[%clk 0:02:56]} 3. c4 {[%clk 0:02:57]}  b6 {[%clk 0:02:48]} 4. g3 {[%clk 0:02:56]}  Bb7 {[%clk 0:02:48]} 5. Bg2 {[%clk 0:02:57]}  Bb4+ {[%clk 0:02:47]} 6. Bd2 {[%clk 0:02:56]}  Be7 {[%clk 0:02:47]} 7. O-O {[%clk 0:02:55]}  c6 {[%clk 0:02:47]} 8. Nc3 {[%clk 0:02:55]}  d5 {[%clk 0:02:47]} 9. cxd5 {[%clk 0:02:53]}  cxd5 {[%clk 0:02:45]} 10. Rc1 {[%clk 0:02:50]}  O-O {[%clk 0:02:45]} 11. Bf4 {[%clk 0:02:49]}  Nc6 {[%clk 0:02:28]} 12. a3 {[%clk 0:02:45]}  Rc8 {[%clk 0:02:25]} 13. Ne5 {[%clk 0:02:39]}  Nd7 {[%clk 0:01:53]} 14. Nxc6 {[%clk 0:02:30]}  Bxc6 {[%clk 0:01:49]} 15. b4 {[%clk 0:02:26]}  Nf6 {[%clk 0:01:45]} 16. b5 {[%clk 0:02:23]}  Bd7 {[%clk 0:01:39]} 17. a4 {[%clk 0:02:21]}  Bb4 {[%clk 0:01:31]} 18. Qb3 {[%clk 0:02:21]}  Qe7 {[%clk 0:01:29]} 19. Bg5 {[%clk 0:02:16]}  Rc4 {[%clk 0:01:23]} 20. e3 {[%clk 0:02:09]}  Rfc8 {[%clk 0:01:18]} 21. Na2 {[%clk 0:02:08]}  Ba3 {[%clk 0:01:03]} 22. Bxf6 {[%clk 0:02:00]}  gxf6 {[%clk 0:01:01]} 23. Rxc4 {[%clk 0:01:59]}  Rxc4 {[%clk 0:00:59]} 24. Rd1 {[%clk 0:01:47]}  f5 {[%clk 0:00:57]} 25. Bf1 {[%clk 0:01:47]}  Rc7 {[%clk 0:00:55]} 26. Kg2 {[%clk 0:01:41]}  Be8 {[%clk 0:00:46]} 27. Bd3 {[%clk 0:01:41]}  Kg7 {[%clk 0:00:41]} 28. Rb1 {[%clk 0:01:37]}  f6 {[%clk 0:00:36]} 29. Nc3 {[%clk 0:01:36]}  Bd6 {[%clk 0:00:33]} 30. f4 {[%clk 0:01:32]}  Rc8 {[%clk 0:00:31]} 31. Ne2 {[%clk 0:01:31]}  Bh5 {[%clk 0:00:30]} 32. Rc1 {[%clk 0:01:26]}  Rc7 {[%clk 0:00:30]} 33. Rxc7 {[%clk 0:01:24]}  Qxc7 {[%clk 0:00:31]} 34. Nc3 {[%clk 0:01:25]}  Qc8 {[%clk 0:00:27]} 35. h3 {[%clk 0:01:23]}  Kh6 {[%clk 0:00:26]} 36. Nxd5 {[%clk 0:01:13]}  Qa8 {[%clk 0:00:21]} 37. e4 {[%clk 0:01:09]}  exd5 {[%clk 0:00:19]} 38. e5 {[%clk 0:01:03]}  fxe5 {[%clk 0:00:19]} 39. fxe5 {[%clk 0:01:04]}  Be7 {[%clk 0:00:19]} 40. Bxf5 {[%clk 0:01:04]}  Bg6 {[%clk 0:00:19]} 41. g4 {[%clk 0:01:03]}  Kg7 {[%clk 0:00:19]} 42. Qd3 {[%clk 0:01:00]}  Qc8 {[%clk 0:00:18]} 43. Kf3 {[%clk 0:00:51]}  Qc1 {[%clk 0:00:18]} 44. Qe3 {[%clk 0:00:39]}  Qh1+ {[%clk 0:00:18]} 45. Kg3 {[%clk 0:00:38]}  Qg1+ {[%clk 0:00:18]} 46. Qxg1 {[%clk 0:00:38]}  Bf7 {[%clk 0:00:12]} 47. Qe3 {[%clk 0:00:36]} 1-0


[Site "https://www.chess.com"]

[Event "Titled Tuesday Blitz August 1 Early 2023"]
[White "The_Sherman_Variation"]
[Black "Palacio,Igor Da Paz"]
[BlackFideId "2121140"]
[WhiteElo "2565"]
[BlackElo "2248"]
[Result "1-0"]
[Round "1"]
[TimeControl "180+1"]
[Date "2023.08.01"]
[WhiteClock "0:01:29"]
[BlackClock "0:00:04"]
[Board "204"]

1. b4 {[%clk 0:02:59]}  e5 {[%clk 0:02:56]} 2. Bb2 {[%clk 0:02:58]}  Bxb4 {[%clk 0:02:56]} 3. Bxe5 {[%clk 0:02:57]}  Nf6 {[%clk 0:02:56]} 4. Nf3 {[%clk 0:02:57]}  Nc6 {[%clk 0:02:55]} 5. Bb2 {[%clk 0:02:56]}  d5 {[%clk 0:02:54]} 6. g3 {[%clk 0:02:56]}  O-O {[%clk 0:02:54]} 7. Bg2 {[%clk 0:02:55]}  Re8 {[%clk 0:02:53]} 8. O-O {[%clk 0:02:56]}  b6 {[%clk 0:02:49]} 9. d3 {[%clk 0:02:54]}  Bb7 {[%clk 0:02:48]} 10. Nbd2 {[%clk 0:02:53]}  Qe7 {[%clk 0:02:32]} 11. Re1 {[%clk 0:02:49]}  Rad8 {[%clk 0:02:29]} 12. a3 {[%clk 0:02:37]}  Bc5 {[%clk 0:02:19]} 13. e3 {[%clk 0:02:37]}  Bd6 {[%clk 0:02:15]} 14. Nh4 {[%clk 0:02:34]}  Na5 {[%clk 0:01:26]} 15. Nf5 {[%clk 0:02:31]}  Qe6 {[%clk 0:01:26]} 16. Nxd6 {[%clk 0:02:29]}  Qxd6 {[%clk 0:01:26]} 17. Nf3 {[%clk 0:02:24]}  c5 {[%clk 0:01:24]} 18. Nh4 {[%clk 0:02:22]}  Bc8 {[%clk 0:01:20]} 19. h3 {[%clk 0:02:14]}  a6 {[%clk 0:01:07]} 20. Qf3 {[%clk 0:02:12]}  d4 {[%clk 0:00:48]} 21. e4 {[%clk 0:02:01]}  g6 {[%clk 0:00:28]} 22. Bc1 {[%clk 0:02:00]}  Nd7 {[%clk 0:00:25]} 23. Qe2 {[%clk 0:01:56]}  Qe7 {[%clk 0:00:19]} 24. f4 {[%clk 0:01:53]}  Nf8 {[%clk 0:00:18]} 25. Bd2 {[%clk 0:01:51]}  Nc6 {[%clk 0:00:17]} 26. Qf2 {[%clk 0:01:44]}  Bb7 {[%clk 0:00:17]} 27. g4 {[%clk 0:01:43]}  Nd7 {[%clk 0:00:16]} 28. Nf3 {[%clk 0:01:42]}  Na5 {[%clk 0:00:15]} 29. h4 {[%clk 0:01:42]}  h6 {[%clk 0:00:14]} 30. f5 {[%clk 0:01:39]}  Kh7 {[%clk 0:00:13]} 31. Qg3 {[%clk 0:01:34]}  Ne5 {[%clk 0:00:12]} 32. Qf4 {[%clk 0:01:31]}  Nxf3+ {[%clk 0:00:12]} 33. Bxf3 {[%clk 0:01:31]}  Qxh4 {[%clk 0:00:11]} 34. Kg2 {[%clk 0:01:29]}  Rh8 {[%clk 0:00:04]} 35. Rh1 {[%clk 0:01:28]}  Qe7 {[%clk 0:00:03]} 36. Qxh6+ {[%clk 0:01:28]}  Kg8 {[%clk 0:00:04]} 37. Qxh8# {[%clk 0:01:29]} 1-0


[Site "https://www.chess.com"]

[Event "Titled Tuesday Blitz August 1 Early 2023"]
[White "Ambartsumova, Karina"]
[Black "Daniel_Salinas"]
[WhiteFideId "4166299"]
[WhiteElo "2562"]
[BlackElo "2244"]
[Result "1-0"]
[Round "1"]
[TimeControl "180+1"]
[Date "2023.08.01"]
[WhiteClock "0:00:04"]
[BlackClock "0:00:00"]
[Board "206"]

1. c4 {[%clk 0:02:59]}  Nf6 {[%clk 0:02:57]} 2. Nc3 {[%clk 0:02:59]}  e6 {[%clk 0:02:44]} 3. e4 {[%clk 0:02:58]}  d5 {[%clk 0:02:44]} 4. e5 {[%clk 0:02:57]}  d4 {[%clk 0:02:45]} 5. exf6 {[%clk 0:02:56]}  dxc3 {[%clk 0:02:45]} 6. bxc3 {[%clk 0:02:57]}  Qxf6 {[%clk 0:02:46]} 7. d4 {[%clk 0:02:57]}  e5 {[%clk 0:02:46]} 8. Nf3 {[%clk 0:02:51]}  exd4 {[%clk 0:02:38]} 9. cxd4 {[%clk 0:02:50]}  Bb4+ {[%clk 0:02:37]} 10. Bd2 {[%clk 0:02:50]}  Bxd2+ {[%clk 0:02:36]} 11. Qxd2 {[%clk 0:02:51]}  O-O {[%clk 0:02:26]} 12. Be2 {[%clk 0:02:51]}  Nc6 {[%clk 0:02:21]} 13. O-O {[%clk 0:02:45]}  Bg4 {[%clk 0:02:20]} 14. d5 {[%clk 0:02:29]}  Bxf3 {[%clk 0:02:16]} 15. Bxf3 {[%clk 0:02:30]}  Ne5 {[%clk 0:02:16]} 16. Be2 {[%clk 0:02:29]}  c6 {[%clk 0:01:44]} 17. d6 {[%clk 0:01:55]}  c5 {[%clk 0:01:35]} 18. Qd5 {[%clk 0:01:44]}  Rad8 {[%clk 0:00:52]} 19. Rad1 {[%clk 0:01:31]}  b6 {[%clk 0:00:48]} 20. f4 {[%clk 0:01:23]}  Ng6 {[%clk 0:00:41]} 21. g3 {[%clk 0:01:23]}  Rfe8 {[%clk 0:00:41]} 22. Bg4 {[%clk 0:01:19]}  Ne7 {[%clk 0:00:32]} 23. Qe5 {[%clk 0:00:39]}  Qxe5 {[%clk 0:00:29]} 24. fxe5 {[%clk 0:00:40]}  Nc6 {[%clk 0:00:29]} 25. e6 {[%clk 0:00:34]}  fxe6 {[%clk 0:00:28]} 26. Rfe1 {[%clk 0:00:27]}  Nd4 {[%clk 0:00:28]} 27. d7 {[%clk 0:00:17]}  Re7 {[%clk 0:00:22]} 28. Kg2 {[%clk 0:00:14]}  Rdxd7 {[%clk 0:00:13]} 29. Re4 {[%clk 0:00:07]}  h6 {[%clk 0:00:12]} 30. h4 {[%clk 0:00:07]}  Rd8 {[%clk 0:00:09]} 31. Rde1 {[%clk 0:00:06]}  Rf8 {[%clk 0:00:09]} 32. a4 {[%clk 0:00:05]}  Rf6 {[%clk 0:00:09]} 33. Re5 {[%clk 0:00:05]}  Ref7 {[%clk 0:00:09]} 34. Bxe6 {[%clk 0:00:04]}  Nxe6 {[%clk 0:00:09]} 35. Rxe6 {[%clk 0:00:05]}  Rf2+ {[%clk 0:00:10]} 36. Kh3 {[%clk 0:00:05]}  Rc2 {[%clk 0:00:11]} 37. Re8+ {[%clk 0:00:05]}  Kh7 {[%clk 0:00:11]} 38. Ra8 {[%clk 0:00:04]}  Rc3 {[%clk 0:00:10]} 39. h5 {[%clk 0:00:04]}  g6 {[%clk 0:00:09]} 40. hxg6+ {[%clk 0:00:03]}  Kxg6 {[%clk 0:00:10]} 41. Re6+ {[%clk 0:00:04]}  Kg7 {[%clk 0:00:10]} 42. Ree8 {[%clk 0:00:03]}  Rxc4 {[%clk 0:00:11]} 43. Rg8+ {[%clk 0:00:03]}  Kf6 {[%clk 0:00:12]} 44. Rh8 {[%clk 0:00:04]}  Rxa4 {[%clk 0:00:10]} 45. Rxh6+ {[%clk 0:00:04]}  Ke5 {[%clk 0:00:10]} 46. Re8+ {[%clk 0:00:04]}  Kd4 {[%clk 0:00:11]} 47. Rh4+ {[%clk 0:00:04]}  Kc3 {[%clk 0:00:09]} 48. Rxa4 {[%clk 0:00:05]}  b5 {[%clk 0:00:10]} 49. Ra6 {[%clk 0:00:05]}  b4 {[%clk 0:00:07]} 50. Rc8 {[%clk 0:00:05]}  Rf5 {[%clk 0:00:04]} 51. g4 {[%clk 0:00:04]}  Rd5 {[%clk 0:00:04]} 52. Rac6 {[%clk 0:00:04]}  Kc4 {[%clk 0:00:03]} 53. Kh4 {[%clk 0:00:04]}  a5 {[%clk 0:00:03]} 54. g5 {[%clk 0:00:04]}  b3 {[%clk 0:00:01]} 55. g6 {[%clk 0:00:04]}  b2 {[%clk 0:00:01]} 56. Rb8 {[%clk 0:00:05]}  Rd7 {[%clk 0:00:01]} 57. Kh5 {[%clk 0:00:05]}  Rg7 {[%clk 0:00:01]} 58. Kh6 {[%clk 0:00:05]}  Rd7 {[%clk 0:00:01]} 59. Rxb2 {[%clk 0:00:04]}  a4 {[%clk 0:00:00]} 60. g7 {[%clk 0:00:04]} 1-0


[Site "https://www.chess.com"]

[Event "Titled Tuesday Blitz August 1 Early 2023"]
[White "Sankalan Shah"]
[Black "Kuzmin, Roman"]
[WhiteFideId "25600362"]
[BlackFideId "44134932"]
[WhiteElo "2241"]
[BlackElo "2561"]
[Result "0-1"]
[Round "1"]
[TimeControl "180+1"]
[Date "2023.08.01"]
[WhiteClock "0:00:56"]
[BlackClock "0:02:05"]
[Board "207"]

1. d4 {[%clk 0:03:00]}  Nf6 {[%clk 0:02:59]} 2. c4 {[%clk 0:03:01]}  e6 {[%clk 0:03:00]} 3. Nf3 {[%clk 0:03:00]}  d5 {[%clk 0:03:00]} 4. Nc3 {[%clk 0:02:59]}  c6 {[%clk 0:03:00]} 5. e3 {[%clk 0:02:56]}  Nbd7 {[%clk 0:03:00]} 6. Qc2 {[%clk 0:02:56]}  Bd6 {[%clk 0:02:57]} 7. g4 {[%clk 0:02:52]}  Nxg4 {[%clk 0:02:44]} 8. Rg1 {[%clk 0:02:49]}  Qf6 {[%clk 0:02:43]} 9. Rxg4 {[%clk 0:02:40]}  Qxf3 {[%clk 0:02:42]} 10. Rxg7 {[%clk 0:02:40]}  Nf8 {[%clk 0:02:32]} 11. Rg2 {[%clk 0:02:22]}  Ng6 {[%clk 0:02:24]} 12. e4 {[%clk 0:02:07]}  Nh4 {[%clk 0:02:10]} 13. Rg7 {[%clk 0:02:01]}  Qf6 {[%clk 0:02:07]} 14. Bg5 {[%clk 0:00:56]}  Nf3+ {[%clk 0:02:05]} 0-1


[Site "https://www.chess.com"]

[Event "Titled Tuesday Blitz August 1 Early 2023"]
[White "Fudalej, Michal"]
[Black "Pastar, Slaven"]
[WhiteFideId "1118781"]
[BlackFideId "14402718"]
[WhiteElo "2232"]
[BlackElo "2552"]
[Result "0-1"]
[Round "1"]
[TimeControl "180+1"]
[Date "2023.08.01"]
[WhiteClock "0:00:00"]
[BlackClock "0:00:02"]
[Board "211"]

1. Nf3 {[%clk 0:02:47]}  b6 {[%clk 0:02:59]} 2. c4 {[%clk 0:02:45]}  Bb7 {[%clk 0:02:59]} 3. g3 {[%clk 0:02:45]}  g6 {[%clk 0:02:59]} 4. Bg2 {[%clk 0:02:45]}  Bg7 {[%clk 0:03:00]} 5. Nc3 {[%clk 0:02:46]}  Nf6 {[%clk 0:03:00]} 6. O-O {[%clk 0:02:46]}  O-O {[%clk 0:03:01]} 7. b3 {[%clk 0:02:43]}  Ne4 {[%clk 0:03:01]} 8. Bb2 {[%clk 0:02:43]}  Nxc3 {[%clk 0:03:00]} 9. Bxc3 {[%clk 0:02:44]}  Bxc3 {[%clk 0:03:00]} 10. dxc3 {[%clk 0:02:45]}  d6 {[%clk 0:03:00]} 11. Qd2 {[%clk 0:02:26]}  Kg7 {[%clk 0:02:58]} 12. Qd4+ {[%clk 0:02:14]}  e5 {[%clk 0:02:47]} 13. Nxe5 {[%clk 0:02:13]}  c5 {[%clk 0:02:32]} 14. Nxf7+ {[%clk 0:01:35]}  cxd4 {[%clk 0:02:32]} 15. Nxd8 {[%clk 0:01:34]}  Bxg2 {[%clk 0:02:32]} 16. Ne6+ {[%clk 0:01:34]}  Kf6 {[%clk 0:01:35]} 17. Nxf8 {[%clk 0:01:29]}  Bxf1 {[%clk 0:01:35]} 18. Kxf1 {[%clk 0:01:16]}  h6 {[%clk 0:01:35]} 19. Rd1 {[%clk 0:01:01]}  Kf7 {[%clk 0:01:29]} 20. Nh7 {[%clk 0:01:00]}  Nc6 {[%clk 0:01:18]} 21. cxd4 {[%clk 0:00:56]}  Kg7 {[%clk 0:01:13]} 22. d5 {[%clk 0:00:52]}  Ne5 {[%clk 0:01:11]} 23. h3 {[%clk 0:00:37]}  Kxh7 {[%clk 0:01:10]} 24. f4 {[%clk 0:00:37]}  Nd7 {[%clk 0:01:10]} 25. Kf2 {[%clk 0:00:35]}  a5 {[%clk 0:01:06]} 26. Kf3 {[%clk 0:00:35]}  Re8 {[%clk 0:01:01]} 27. e4 {[%clk 0:00:34]}  Nc5 {[%clk 0:01:01]} 28. Re1 {[%clk 0:00:29]}  Kg7 {[%clk 0:00:56]} 29. g4 {[%clk 0:00:30]}  Kf6 {[%clk 0:00:54]} 30. Re3 {[%clk 0:00:30]}  g5 {[%clk 0:00:52]} 31. a3 {[%clk 0:00:26]}  Nd7 {[%clk 0:00:47]} 32. Kg3 {[%clk 0:00:23]}  Rc8 {[%clk 0:00:36]} 33. h4 {[%clk 0:00:20]}  a4 {[%clk 0:00:29]} 34. hxg5+ {[%clk 0:00:19]}  hxg5 {[%clk 0:00:29]} 35. bxa4 {[%clk 0:00:09]}  Rxc4 {[%clk 0:00:28]} 36. fxg5+ {[%clk 0:00:08]}  Kxg5 {[%clk 0:00:24]} 37. Rf3 {[%clk 0:00:08]}  Rxe4 {[%clk 0:00:21]} 38. Rf5+ {[%clk 0:00:08]}  Kg6 {[%clk 0:00:20]} 39. Rf2 {[%clk 0:00:04]}  Rxa4 {[%clk 0:00:18]} 40. Rb2 {[%clk 0:00:04]}  Rxa3+ {[%clk 0:00:17]} 41. Kh4 {[%clk 0:00:04]}  Ra4 {[%clk 0:00:10]} 42. Rc2 {[%clk 0:00:04]}  Nf6 {[%clk 0:00:08]} 43. Rc6 {[%clk 0:00:03]}  Rxg4+ {[%clk 0:00:03]} 44. Kh3 {[%clk 0:00:04]}  Rb4 {[%clk 0:00:04]} 45. Rxd6 {[%clk 0:00:04]}  b5 {[%clk 0:00:05]} 46. Kg3 {[%clk 0:00:04]}  Kf5 {[%clk 0:00:05]} 47. Kf3 {[%clk 0:00:04]}  Rb1 {[%clk 0:00:04]} 48. Ke3 {[%clk 0:00:04]}  b4 {[%clk 0:00:03]} 49. Kd3 {[%clk 0:00:04]}  Ke5 {[%clk 0:00:04]} 50. Rd8 {[%clk 0:00:03]}  Nxd5 {[%clk 0:00:04]} 51. Kc2 {[%clk 0:00:04]}  Rh1 {[%clk 0:00:03]} 52. Kb3 {[%clk 0:00:04]}  Rh3+ {[%clk 0:00:03]} 53. Kb2 {[%clk 0:00:04]}  Kd4 {[%clk 0:00:02]} 54. Rc8 {[%clk 0:00:04]}  Nb6 {[%clk 0:00:02]} 55. Kc2 {[%clk 0:00:00]}  Nxc8 {[%clk 0:00:02]} 0-1


[Site "https://www.chess.com"]

[Event "Titled Tuesday Blitz August 1 Early 2023"]
[White "rikchessmx"]
[Black "Golubev, Mikhail"]
[BlackFideId "14100983"]
[WhiteElo "2222"]
[BlackElo "2550"]
[Result "1/2-1/2"]
[Round "1"]
[TimeControl "180+1"]
[Date "2023.08.01"]
[WhiteClock "0:00:41"]
[BlackClock "0:00:51"]
[Board "215"]

1. e4 {[%clk 0:01:37]}  c5 {[%clk 0:02:57]} 2. Nf3 {[%clk 0:01:37]}  d6 {[%clk 0:02:54]} 3. d4 {[%clk 0:01:37]}  Nf6 {[%clk 0:02:54]} 4. Nc3 {[%clk 0:01:36]}  cxd4 {[%clk 0:02:54]} 5. Nxd4 {[%clk 0:01:35]}  g6 {[%clk 0:02:55]} 6. f4 {[%clk 0:01:35]}  Nc6 {[%clk 0:02:53]} 7. Nxc6 {[%clk 0:01:33]}  bxc6 {[%clk 0:02:54]} 8. Bd3 {[%clk 0:01:33]}  Bg7 {[%clk 0:02:52]} 9. O-O {[%clk 0:01:34]}  O-O {[%clk 0:02:51]} 10. Kh1 {[%clk 0:01:34]}  Rb8 {[%clk 0:02:40]} 11. Qe1 {[%clk 0:01:35]}  d5 {[%clk 0:02:12]} 12. e5 {[%clk 0:01:33]}  Nd7 {[%clk 0:02:12]} 13. Na4 {[%clk 0:01:30]}  f6 {[%clk 0:02:01]} 14. e6 {[%clk 0:01:29]}  Nb6 {[%clk 0:02:01]} 15. Nxb6 {[%clk 0:01:28]}  Rxb6 {[%clk 0:01:50]} 16. f5 {[%clk 0:01:28]}  g5 {[%clk 0:01:29]} 17. b3 {[%clk 0:01:23]}  c5 {[%clk 0:01:24]} 18. Ba3 {[%clk 0:01:13]}  Qc7 {[%clk 0:01:19]} 19. c4 {[%clk 0:01:13]}  dxc4 {[%clk 0:01:14]} 20. Bxc4 {[%clk 0:01:11]}  Rd8 {[%clk 0:01:09]} 21. Rd1 {[%clk 0:01:11]}  Rbd6 {[%clk 0:01:08]} 22. Qe2 {[%clk 0:01:08]}  Bb7 {[%clk 0:01:06]} 23. Rxd6 {[%clk 0:00:59]}  Qxd6 {[%clk 0:01:05]} 24. Qf2 {[%clk 0:00:50]}  Rc8 {[%clk 0:00:59]} 25. Qe2 {[%clk 0:00:43]}  Rd8 {[%clk 0:00:56]} 26. Qf2 {[%clk 0:00:42]}  Rc8 {[%clk 0:00:52]} 27. Qe2 {[%clk 0:00:41]}  Rd8 {[%clk 0:00:51]} 1/2-1/2


[Site "https://www.chess.com"]